Cogmind - Beta 14 @@@ ROGUE MODE // 2024.10.04 @ 15:25:58 Player: LegionOfLizards Result: Destroyed by S-10 Pest with Light Assault Rifle Performance ------------- Evolutions (0) 0 Regions Visited (1) 200 Robots Destroyed (27) 135 Value Destroyed (386) 386 Prototype IDs (0) 0 Alien Tech Used (0) 0 Bonus (0) 0 TOTAL SCORE: 721 Bonus ------- None Cogmind --------- Core Integrity 0/250 Matter 212/300 Energy 99/100 System Corruption 1% Temperature Cool (0) Movement Core (750) Ox14 Location -10/Materials Parts ------- > --- POWER (1) -------- (None) > --- PROPULSION (2) --- (None) > --- UTILITY (2) ------ High-capacity Storage Unit Improved Terrain Scanner > --- WEAPON (2) ------- Mining Claw > --- INVENTORY (20) --- Ion Engine Wheel Heat Sink Small Storage Unit Utility Shielding Utility Shielding Hacking Suite Medium Laser Light Cannon Light Cannon Light Cannon Light Cannon Grenade Launcher Grenade Launcher Grenade Launcher Mining Claw Peak State ------------ > --- POWER ------------ Ion Engine > --- PROPULSION ------- Light Treads Light Treads > --- UTILITY ---------- Small Storage Unit Improved Terrain Scanner > --- WEAPON ----------- Assault Rifle Assault Rifle > --- INVENTORY -------- Light Ion Engine Medium Laser [Rating: 9] Favorites ----------- Power Ion Engine Engine Ion Engine Propulsion Light Treads Treads Light Treads Utility Improved Terrain Scanner Device Improved Terrain Scanner Storage High-capacity Storage Unit Weapon Light Cannon Ballistic Gun Assault Rifle Ballistic Cannon Light Cannon Launcher Grenade Launcher Slashing Weapon Mining Claw Build | -11 -10 ------- Run | Yrd Mat Slots Evolved . | . . Power . | . . Propulsion . | . . Utility . | . . Weapon . | . . Parts Attached 13 | 7 6 Power 2 | 1 1 Engine 2 | 1 1 Core . | . . Reactor . | . . Propulsion 2 | 2 . Treads 2 | 2 . Leg . | . . Wheel . | . . Hover . | . . Flight . | . . Utility 3 | 2 1 Device 1 | 1 . Storage 2 | 1 1 Processor . | . . Hackware . | . . Protection . | . . Artifact . | . . Weapon 6 | 2 4 Energy Gun . | . . Energy Cannon . | . . Ballistic Gun 2 | 2 . Ballistic Cannon 2 | . 2 Launcher 1 | . 1 Special Weapon . | . . Impact Weapon . | . . Slashing Weapon 1 | . 1 Piercing Weapon . | . . Special Melee Weapon . | . . Unidentified Prototypes . | . . Parts Lost 5 | . 5 Power 2 | . 2 Propulsion 2 | . 2 Utility . | . . Weapon 1 | . 1 Highest Loss Streak 3 | . 3 To Critical Strikes . | . . Average Slot Usage (%) 81 | . 81 Engine 6 | . 6 Treads 18 | . 18 Device 14 | . 14 Storage 14 | . 14 Ballistic Gun 4 | . 4 Ballistic Cannon 11 | . 11 Launcher 2 | . 2 Slashing Weapon 9 | . 9 Peak Build Rating 9 | 9 9 Average Rating 8 | 5 8 On Entrance 4 | . 9 Naked Turns . | . . Heaviest Build 51 | 15 51 Greatest Support 40 | 40 40 Greatest Overweight (x) 16 | . 16 Average Overweight (x) 1 | . 1 Largest Inventory Capacity 20 | 8 20 Average Capacity 18 | 7 19 Most Carried 16 | 5 16 Average Carried 10 | 2 10 Final Capacity 20 | 8 20 Final Carried 16 | 2 16 Class Distribution -------------------- 100% | Mutant Dominant Class ---------------- Mutant | -10/Materials Resources | -11 -10 ----------- Run | Yrd Mat Matter Collected 661 | 324 337 Remotely . | . . Salvage Created 684 | 171 513 Parts 56 | 12 44 Haulers Intercepted 1 | . 1 Recyclers Shooed . | . . Parts Field Recycled . | . . Retrieved Matter . | . . Parts Self-Destructed . | . . Prevented . | . . Kills | -11 -10 ------- Run | Yrd Mat Combat Hostiles Destroyed 9 | . 9 Melee 3 | . 3 Guns 4 | . 4 Cannons 1 | . 1 AOE 1 | . 1 Classes Destroyed 10 | 2 8 Worker 3 | . 3 Builder 2 | . 2 Tunneler 5 | 4 1 Hauler 1 | . 1 Recycler 2 | 1 1 Mechanic 1 | . 1 Operator 1 | . 1 Watcher 3 | . 3 Swarmer 3 | . 3 Grunt 6 | . 6 Best Kill Streak 5 | 5 5 Combat Bots Only 2 | . 2 Max Kills in Single Turn 1 | 1 1 Gunslinging . | . . Exploded 1 | . 1 Melee 1 | . 1 Uniques/NPCs Destroyed . | . . Combat | -11 -10 -------- Run | Yrd Mat Hostile Shots Fired 132 | . 132 Missed 38 | . 38 Damage Taken 1029 | . 1029 Core 257 | . 257 Absorbed by Shields . | . . Core Remaining (%) 100 | 100 . Volleys Fired 62 | 9 53 Largest 2 | 2 2 Hottest 70 | 40 70 Shots Fired 112 | 18 94 Gun 70 | 18 52 Cannon 32 | . 32 Launcher 10 | . 10 Special . | . . Kinetic 102 | 18 84 Thermal . | . . Explosive 10 | . 10 Electromagnetic . | . . Robot Hit Streak 7 | 6 7 Robot Miss Streak 4 | 1 4 Penetration Max . | . . Secondary Targets . | . . Shots Hit Robots 69 | 10 59 Core Hits 33 | 6 27 Critical Kills . | . . Critical Parts Destroyed . | . . Critical Strikes 1 | . 1 Blast 1 | . 1 Melee Attacks 19 | . 19 Impact . | . . Slashing 19 | . 19 Piercing . | . . Sneak Attacks 5 | . 5 Combat Hostiles . | . . Follow-up Attacks . | . . Damage Inflicted 1294 | 130 1164 Guns 574 | 130 444 Cannons 331 | . 331 Explosions 81 | . 81 Melee 308 | . 308 Ramming . | . . Kinetic 905 | 130 775 Thermal . | . . Explosive 81 | . 81 Electromagnetic . | . . Impact . | . . Slashing 308 | . 308 Piercing . | . . Highest Corruption 1 | . 1 Average Corruption 1 | . 1 Corruption Purged . | . . Corruption Blocked . | . . Effects 13 | . 13 Message Errors 4 | . 4 Matter Fused 1 | . 1 Energy Discharges 3 | . 3 Data Loss (minor) 4 | . 4 Data Loss (major) 1 | . 1 Overload Shots . | . . Overflow Damage 30 | . 30 Projectiles 16 | . 16 Explosions . | . . Melee 14 | . 14 Knockbacks 4 | . 4 Impact . | . . Kinetic 4 | . 4 Secondary . | . . Self-Inflicted Damage . | . . Shots . | . . Rammed . | . . Targets Rammed . | . . Kicked . | . . Crushed . | . . Highest Temperature 9 | . 9 Average Temperature 4 | . 4 Received Heat Transfer 183 | . 183 Siege Activations . | . . Robots Corrupted . | . . Combat Hostiles . | . . Parts Fried . | . . Impact Corruptions . | . . Robots Melted . | . . Combat Hostiles . | . . Parts Melted . | . . Heat Transferred . | . . Parts Sabotaged . | . . Parts Stolen . | . . Parts Stripped . | . . Power Chain Reactions . | . . Alert | -11 -10 ------- Run | Yrd Mat Peak Influence 192 | 25 192 Initial 16 | . 16 Average 52 | 11 55 Maximum Alert Level 1 | . 1 Low Security (%) 99 | 100 99 Level 1 . | . . Level 2 . | . . Level 3 . | . . Level 4 . | . . Level 5 . | . . High Security . | . . Max Security . | . . Squads Dispatched 2 | . 2 Investigation 1 | . 1 Extermination . | . . Reinforcement 1 | . 1 Assault . | . . Garrison . | . . Intercept . | . . Searches Triggered . | . . Construction Impeded . | . . Haulers Reinforced . | . . Active Scanning Responses . | . . Cargo Convoy Interrupts . | . . Stealth | -11 -10 --------- Run | Yrd Mat Distress Signals 1 | . 1 Communications Jammed . | . . Distress Signals . | . . Times Spotted 21 | . 21 Peak Tracking Total 3 | . 3 Tactical Retreats 2 | . 2 Traps | -11 -10 ------- Run | Yrd Mat Traps Triggered 1 | . 1 Indirectly . | . . Trap Hack Attempts . | . . Triggered . | . . Disarmed . | . . Reprogrammed . | . . Reused . | . . Traps Extracted . | . . Installed . | . . Triggered . | . . Machines | -11 -10 ---------- Run | Yrd Mat Machines Disabled 3 | . 3 Max in Single Turn 1 | . 1 Machines Repaired . | . . Machines Dismantled . | . . Machines Sabotaged . | . . Overloaded Fab Kills . | . . Hacking | -11 -10 --------- Run | Yrd Mat Machines Accessed 2 | . 2 Terminals 2 | . 2 Fabricators . | . . Repair Stations . | . . Recycling Units . | . . Scanalyzers . | . . Garrison Access . | . . Total Hacks 6 | . 6 Successful 4 | . 4 Failed 2 | . 2 Catastrophic . | . . Database Lockouts . | . . Manual . | . . Terminals 6 | . 6 Fabricators . | . . Repair Stations . | . . Recycling Units . | . . Scanalyzers . | . . Garrison Access . | . . Terminal Hacks 4 | . 4 Record 1 | . 1 Alert Level 1 | . 1 Locate Traps 2 | . 2 Fabricator Hacks . | . . Repair Station Hacks . | . . Recycling Unit Hacks . | . . Scanalyzer . | . . Garrison Access Hacks . | . . Unauthorized Hacks . | . . Terminals . | . . Fabricators . | . . Repair Stations . | . . Recycling Units . | . . Scanalyzers . | . . Garrison Access . | . . Data Cores Recovered . | . . Used . | . . Hacking Detections 2 | . 2 Full Trace Events . | . . Feedback Events . | . . Feedback Blocked . | . . Robot Schematics Acquired . | . . Robots Built . | . . Authchips . | . . Time . | . . Total Robot Build Rating . | . . Part Schematics Acquired . | . . Parts Built . | . . Authchips . | . . Time . | . . Total Part Build Rating . | . . Parts Repaired . | . . Time . | . . Parts Recycled . | . . Recycled Matter . | . . Retrieved Matter . | . . Retrieved Components . | . . Parts Scanalyzed . | . . Part Schematics Acquired . | . . Parts Damaged . | . . Bothacking | -11 -10 ------------ Run | Yrd Mat Used RIF Installer . | . . Robots Hacked . | . . Non-combat . | . . Combat . | . . Robot Hacks Applied . | . . Relay Couplers Released . | . . Fabnet Peak Effective % . | . . Robots Rewired . | . . Allies Hacked . | . . Hacks Repelled . | . . Allies | -11 -10 -------- Run | Yrd Mat Total Allies . | . . Largest Group . | . . Highest-Rated Group . | . . Highest-Rated Ally . | . . Total Orders . | . . Ally Attacks . | . . Total Damage . | . . Kills . | . . Allies Corrupted . | . . Allies Melted . | . . Intel | -11 -10 ------- Run | Yrd Mat Robot Analysis Total . | . . Derelict Logs Recovered . | . . Drone Launches . | . . Drone Recoveries . | . . Exploration | -11 -10 ------------- Run | Yrd Mat Turns Passed 1748 | 115 1633 Spaces Moved 538 | 59 479 Core 23 | 18 5 Treads 515 | 41 474 Legs . | . . Wheels . | . . Hover . | . . Flight . | . . Fastest Speed 50 | 50 160 Average Speed 273 | 126 291 Slowest Speed 850 | 160 850 Overloaded Moves . | . . Propulsion Burnouts . | . . Robots Hopped . | . . Cave-ins Triggered 1 | . 1 Exploration Rate (%) 44 | 4 85 Regions Visited 1 Branch Regions . Pre-discovered Areas . | . . Known Exits Taken . | . . Unknown Exits Taken 1 | 1 . Scrap Searched . | . . Spaces Dug 23 | . 23 Terrain Destroyed 81 | . 81 Melee 3 | . 3 Projectile . | . . AOE 78 | . 78 Terrain Rammed . | . . Walls Destroyed . | . . Machines Disabled . | . . Actions | -11 -10 --------- Run | Yrd Mat Total 670 | 81 589 Wait 12 | . 12 Move 537 | 58 479 Hop . | . . Pick Up 24 | 7 17 Fast Attach 2 | 2 . Attach 6 | 5 1 Detach . | . . Swap 5 | . 5 Drop 3 | . 3 Fire 62 | 9 53 Melee 19 | . 19 Ram . | . . Kick . | . . Crush . | . . Escape Stasis . | . . Rewire . | . . Trap . | . . Miscellaneous . | . . Route ------- -11/Scrapyard -10/Materials (discovered 4 exits: [*Mat x2] / [*Min x2]) History --------- Turn | Location | Event 13 | -11/Scrapyard | Discovered new exit (range 15) 116 | -11/Scrapyard | Entered Materials 306 | -10/Materials | Build established: Mutant 419 | -10/Materials | Discovered new exit (range 14) 649 | -10/Materials | Discovered new exit (range 5) 690 | -10/Materials | Crushed by falling debris 1251 | -10/Materials | Discovered new exit (range 14) 1691 | -10/Materials | Discovered new exit (range 14) 1725 | -10/Materials | Core integrity fell below 50% 1744 | -10/Materials | Core integrity fell below 20% 1749 | -10/Materials | Destroyed by S-10 Pest with Light Assault Rifle Last Messages --------------- The unstable cave ceiling collapses. Machine disabled. Lgt. Treads destroyed. The unstable cave ceiling collapses. Grenade Launcher destroyed. K-01 Serf collects debris. Having swapped a part into your inventory to attach the Hcp. Storage Unit, a marker appears next to it in your parts list, and clicking on that marker offers an easier way for mouse users to swap between the two. Doing so is the equivalent of the 'Y' option in the modal swap menu accessed via Ctrl-RMB or '/'. The unstable cave ceiling collapses. Ion Engine destroyed. K-01 Serf collects debris. K-01 Serf destroyed. The unstable cave ceiling collapses. System corrupted: Matter fused (-6). The unstable cave ceiling collapses. Map ----- +----------------------------------------------------+ | | | | | | | | | | | | | | | | | | | | | | | | | | | | | | | | | | | | | | | | | #?#?#?????#?#??#??????###########?????? | | ???????#?????#######???# ######## | | ??#?????????## ##### | | ??????####### | | ????#?# T | | ??????# ### ##@ | | ?????## #?## sss ##### [ | | ??##??# #?# ### #??## ### #### | | ?????## #?# ## #???#### ####?# # | | ??????# #?## #?#???## #????# # | | #??#?## #?## # #?#???## #?#### # | | ##????# #?# ##?##?###+#### # | | ??????# #?# |%|= ?#????# # < # | | #?#???# ##" ! ??##??# # # | | #???#?# ## ?#???## + #### | | ?#?#??# ## < #??###?# # # | | ?#????# ## ????##?# # # | | #?#???# ## ?? ? ?# # # / | | ???#?## ### #?? ???##"T"### %# | | #?????# #### #?#?????#?#"""#?# #! | | ?#??#?# #??# ?????? ??####### ! # | | ??????# #??# ?#?? ?#????#??# %+= | | ????#?# #?## ????? ??#??#??### # | | #???#?# #?## ##? ??? ???#??#?# %!# | | ????#?# ### ##+############# #### | | ??##??# #?# =% % ### | | ????### ### | | ???#### ### | | ???## # # # % ## % | | ??## # # ######% ## ### | +----------------------------------------------------+ Best States ------------- Heat Dissipation 25 Energy Generation 10 Energy Capacity 250 Matter Stores 300 Matter Capacity 300 Sight Range 16 Terrain Scan Range 16 Terrain Scan Density 10 Evasion (%) 50 Recoil Reduction 2 Item Schematics ----------------- None Robot Schematics ------------------ None Fabricated ------------ Nothing Alien Tech Used ----------------- None Achievements -------------- None Challenges ------------ None Game ------ Seed WarlordVoltaicTearclaws Manual? 0 Play Time 00:19:47 Cumulative 7.8 hours Start 2024.10.04 @ 14:53:50 End 2024.10.04 @ 15:25:58 Sessions 9 Manual Loads 0 Difficulty Rogue Special Mode None Game No. 11 Rogue 11 Adventurer 0 Explorer 0 Win Type - Total 0 Types 0/0/0/0/0/0/0/0/0 Lore% 3 Gallery% 12 Achievement% 10 Wizard Run 0 Options --------- Layout 1 ASCII 0 Keyboard 0 Movement Mouse Keybinds 0 Fullscreen 1 Font 32/SmallcapsGlow Map View 50x35 Zoom Use 0% Tactical HUD 0 Map Filters NONE Filters NONE Steam 1 RUN: 3648e225-af93-4c1e-b995-fe882da101f7